bitfinex/quotes_BTCUSD_20241025
["timestamp","ask_amount","ask_price","bid_price","bid_amount"]
[1729896264807,0.42412752,67207.0,67206.0,0.231318]
[1729896265356,0.42412752,67207.0,67206.0,0.082522]
[1729896266299,0.27362371,67207.0,67206.0,0.43882108]
[1729896266530,0.001644,67207.0,67206.0,0.43882108]
[1729896266757,0.04617573,67207.0,67206.0,0.329918]
[1729896269201,0.001644,67207.0,67206.0,0.329918]
[1729896280646,0.001644,67207.0,67206.0,0.082522]
[1729896280868,0.001644,67207.0,67206.0,0.000822]
[1729896281096,0.34543732,67207.0,67206.0,0.000822]
[1729896281322,0.30094181,67207.0,67206.0,0.000822]
[1729896281548,0.4604331,67207.0,67206.0,0.000822]
[1729896281774,0.54942412,67207.0,67206.0,0.000822]
[1729896286261,0.4604331,67207.0,67206.0,0.000822]
[1729896286501,0.3116391,67207.0,67206.0,0.000822]
[1729896287378,0.4604331,67207.0,67206.0,0.000822]
[1729896288041,0.3116391,67207.0,67206.0,0.000822]
[1729896288928,0.31155281,67207.0,67206.0,0.000822]
[1729896293264,0.31155281,67207.0,67206.0,0.149618]
[1729896293993,0.40056825,67207.0,67206.0,0.149618]
[1729896294269,0.31155281,67207.0,67206.0,0.149618]
[1729896295194,0.42281032,67207.0,67206.0,0.149618]
[1729896295423,0.5317134,67207.0,67206.0,0.149618]
[1729896296392,0.42045589,67207.0,67206.0,0.149618]
[1729896296637,0.5317134,67207.0,67206.0,0.149618]
[1729896298261,0.53170068,67207.0,67206.0,0.149618]
[1729896298495,0.42276051,67207.0,67206.0,0.149618]
[1729896298774,0.31145568,67207.0,67206.0,0.149618]
[1729896298963,0.53166359,67207.0,67206.0,0.149618]
[1729896301082,0.42035876,67207.0,67206.0,0.000822]
[1729896301326,0.53166359,67207.0,67206.0,0.000822]
[1729896301576,0.53179093,67207.0,67206.0,0.000822]
[1729896302785,0.53179093,67207.0,67206.0,0.149618]
[1729896302786,0.53212731,67207.0,67206.0,0.149618]
[1729896303019,0.42081726,67207.0,67206.0,0.149618]
[1729896303477,0.53212731,67207.0,67206.0,0.149618]
[1729896303960,0.42081726,67207.0,67206.0,0.000822]
[1729896304188,0.53212731,67207.0,67206.0,0.149618]
[1729896304436,0.42081726,67207.0,67206.0,0.149618]
[1729896304689,0.53212731,67207.0,67206.0,0.149618]
[1729896306313,0.42081726,67207.0,67206.0,0.000822]
[1729896306555,0.53212731,67207.0,67206.0,0.149618]
[1729896307223,0.42081726,67207.0,67206.0,0.149618]
[1729896307446,0.53212731,67207.0,67206.0,0.149618]
[1729896309055,0.53212731,67207.0,67206.0,0.000822]
[1729896309278,0.42081726,67207.0,67206.0,0.000822]
[1729896309500,0.53212731,67207.0,67206.0,0.149618]
[1729896310416,0.42322423,67207.0,67206.0,0.149618]
[1729896310632,0.31191418,67207.0,67206.0,0.149618]
[1729896310842,0.42322423,67207.0,67206.0,0.149618]
[1729896312855,0.42322423,67207.0,67206.0,0.000822]
[1729896313284,0.31191418,67207.0,67206.0,0.000822]
[1729896313504,0.31191418,67207.0,67206.0,0.149618]
[1729896313726,0.42325889,67207.0,67206.0,0.149618]
[1729896314590,0.42325889,67207.0,67206.0,0.000822]
[1729896315023,0.42325889,67207.0,67206.0,0.149618]
[1729896315238,0.53216197,67207.0,67206.0,0.149618]
[1729896317012,0.56961126,67207.0,67206.0,0.000822]
[1729896317233,0.64130818,67207.0,67206.0,0.000822]
[1729896317465,0.85911434,67207.0,67206.0,0.000822]
[1729896317694,0.86911434,67207.0,67206.0,3.43e-05]
[1729896318156,0.87111434,67207.0,67206.0,3.43e-05]
[1729896319462,0.86911434,67207.0,67206.0,3.43e-05]
[1729896319910,0.87111434,67207.0,67206.0,3.43e-05]
[1729896320385,0.8687519,67207.0,67206.0,3.43e-05]
[1729896320619,1.01895733,67207.0,67206.0,3.43e-05]
[1729896321285,0.8687519,67207.0,67206.0,3.43e-05]
[1729896321498,1.01894397,67207.0,67206.0,3.43e-05]
[1729896321752,0.8687519,67207.0,67206.0,3.43e-05]
[1729896321976,1.01894399,67207.0,67206.0,3.43e-05]
[1729896322644,0.93999744,67207.0,67206.0,3.43e-05]
[1729896322867,1.09018004,67207.0,67206.0,3.43e-05]
[1729896323146,1.0189345,67207.0,67206.0,3.43e-05]
[1729896325170,1.01886549,67207.0,67206.0,3.43e-05]
[1729896325656,0.86869229,67207.0,67206.0,3.43e-05]
[1729896325879,1.01886549,67207.0,67206.0,3.43e-05]
[1729896326992,0.86869229,67207.0,67206.0,3.43e-05]
[1729896327207,0.75978921,67207.0,67206.0,3.43e-05]
[1729896328315,0.75778921,67207.0,67206.0,3.43e-05]
[1729896330052,0.75782216,67207.0,67206.0,3.43e-05]
[1729896330978,0.67482216,67207.0,67206.0,3.43e-05]
[1729896331221,0.57222216,67207.0,67206.0,3.43e-05]
[1729896331453,0.56722216,67207.0,67206.0,3.43e-05]
[1729896332166,0.30952508,67207.0,67206.0,0.2245303]
[1729896332390,0.42113777,67207.0,67206.0,0.0757343]
[1729896332850,0.30989743,67207.0,67206.0,0.0757343]
[1729896333304,0.42113777,67207.0,67206.0,0.0757343]
[1729896333530,0.30989743,67207.0,67206.0,0.0757343]
[1729896333987,0.39888719,67207.0,67206.0,0.3217303]
[1729896334440,0.15214781,67207.0,67206.0,0.3217303]
[1729896340721,0.15214781,67207.0,67206.0,0.1729343]
[1729896341178,0.15214781,67207.0,67206.0,0.3217303]
[1729896341830,0.15214781,67207.0,67206.0,0.1729343]
[1729896342055,0.15214781,67207.0,67206.0,0.3217303]
[1729896342321,0.15214781,67207.0,67206.0,0.1729343]
[1729896347792,0.15214781,67207.0,67206.0,0.3217303]
[1729896348015,0.15214781,67207.0,67206.0,0.1729343]
[1729896348724,0.15214781,67207.0,67206.0,0.3217303]
[1729896348941,0.15214781,67207.0,67206.0,0.1729343]
[1729896349646,0.15214781,67207.0,67206.0,0.3217303]
[1729896349863,0.15214781,67207.0,67206.0,0.1729343]
[1729896351477,0.001644,67207.0,67206.0,0.3217303]
[1729896360002,0.00051996,67211.0,67210.0,0.148787]
[1729896364534,0.001644,67214.0,67210.0,0.148785]
[1729896364749,0.001644,67214.0,67211.0,0.148784]
[1729896364962,0.001644,67214.0,67212.0,0.148782]
[1729896365848,0.001644,67214.0,67211.0,0.148784]
[1729896366292,0.001644,67214.0,67212.0,0.148782]
[1729896367609,0.001644,67214.0,67208.0,0.297583]
[1729896367830,0.001644,67214.0,67212.0,0.148782]
[1729896368044,0.001644,67214.0,67213.0,0.22658]
[1729896368307,0.001644,67214.0,67213.0,0.32558]
[1729896375998,0.04613539,67214.0,67213.0,0.32558]
[1729896376248,0.001644,67214.0,67213.0,0.32558]
[1729896376473,0.06838108,67214.0,67213.0,0.32558]
[1729896377333,0.001644,67214.0,67213.0,0.32558]
[1729896377544,0.06838108,67214.0,67213.0,0.32558]
[1729896378926,0.16060674,67214.0,67213.0,0.32558]
[1729896380439,0.27183521,67214.0,67213.0,0.32558]
[1729896380678,0.16060674,67214.0,67213.0,0.32558]
[1729896381790,0.16076919,67214.0,67213.0,0.32558]
[1729896383394,0.001644,67214.0,67213.0,0.32558]
[1729896384083,0.06842217,67214.0,67213.0,0.32558]
[1729896384321,0.001644,67214.0,67213.0,0.32558]
[1729896384547,0.0684219,67214.0,67213.0,0.32558]
[1729896384985,0.001644,67214.0,67213.0,0.32558]
[1729896385423,0.06842193,67214.0,67213.0,0.32558]
[1729896385857,0.001644,67214.0,67213.0,0.32558]
[1729896387009,0.06842007,67214.0,67213.0,0.32558]
[1729896387230,0.001644,67214.0,67213.0,0.32558]
[1729896387893,0.09068021,67214.0,67213.0,0.32558]
[1729896388116,0.16084071,67214.0,67213.0,0.32558]
[1729896390536,0.001644,67214.0,67213.0,0.32558]
[1729896391459,0.24987384,67214.0,67213.0,0.32558]
[1729896391683,0.24987384,67214.0,67211.0,0.149605]
[1729896391913,0.42099286,67213.0,67211.0,0.000822]
[1729896392132,0.50897807,67212.0,67211.0,0.000822]
[1729896392354,0.65948188,67212.0,67211.0,0.000822]
[1729896395992,0.65945233,67212.0,67211.0,0.000822]
[1729896397858,0.51067033,67212.0,67211.0,0.000822]
[1729896400957,0.5106807,67212.0,67211.0,0.000822]
[1729896402974,0.40177762,67212.0,67211.0,0.000822]
[1729896404831,0.30967762,67212.0,67211.0,0.149607]
[1729896405291,0.42098228,67212.0,67211.0,0.149607]
[1729896405755,0.42101757,67212.0,67211.0,0.149607]
[1729896406197,0.30971296,67212.0,67211.0,0.149607]
[1729896406470,0.42101757,67212.0,67211.0,0.149607]
[1729896409452,0.42101757,67212.0,67211.0,0.000822]
[1729896409935,0.31135696,67212.0,67211.0,0.000822]
[1729896410376,0.31099248,67212.0,67211.0,0.000822]
[1729896411901,0.42230447,67212.0,67211.0,0.149607]
[1729896412346,0.42230447,67212.0,67211.0,0.000822]
[1729896412639,0.31099248,67212.0,67211.0,0.000822]
[1729896415064,0.15214781,67212.0,67211.0,0.000822]
[1729896415287,0.31117121,67212.0,67211.0,0.000822]
[1729896415726,0.42248455,67212.0,67211.0,0.000822]
[1729896415941,0.31117121,67212.0,67211.0,0.000822]
[1729896416448,0.56885629,67212.0,67211.0,0.000822]
[1729896416680,0.75225629,67212.0,67211.0,0.000822]
[1729896416904,0.91252961,67212.0,67211.0,0.000822]
[1729896417129,0.80362653,67212.0,67211.0,0.000822]
[1729896417586,0.65335321,67212.0,67211.0,0.000822]
[1729896419553,0.65282378,67212.0,67211.0,0.000822]
[1729896420970,0.55752378,67212.0,67211.0,0.000822]
[1729896421200,0.47442378,67212.0,67211.0,0.000822]
[1729896421418,0.31592981,67212.0,67211.0,0.000822]
[1729896422549,0.60694567,67212.0,67211.0,0.000822]
[1729896423455,0.47347685,67212.0,67211.0,0.000822]
[1729896423668,0.60692863,67212.0,67211.0,0.000822]
[1729896424599,0.59192863,67212.0,67211.0,0.000822]
[1729896424833,0.45847685,67212.0,67211.0,0.078822]
[1729896425763,0.30969485,67212.0,67211.0,0.078822]
[1729896425985,0.42089993,67212.0,67211.0,0.078822]
[1729896426212,0.30969485,67212.0,67211.0,0.227607]
[1729896426658,0.30858081,67212.0,67211.0,0.078822]
[1729896427101,0.158077,67212.0,67211.0,0.227607]
[1729896427316,0.001644,67212.0,67211.0,0.227607]
[1729896427753,0.06836938,67212.0,67211.0,0.227607]
[1729896428476,0.001644,67212.0,67211.0,0.227607]
[1729896429137,0.001644,67212.0,67211.0,0.32678236]
[1729896429378,0.001644,67212.0,67211.0,0.43271008]
[1729896443953,0.001644,67212.0,67211.0,0.323807]
[1729896444405,0.001644,67212.0,67211.0,0.59821389]
[1729896444612,0.001644,67212.0,67211.0,0.60286991]
[1729896444885,0.001644,67212.0,67211.0,0.60486991]
[1729896445111,0.001644,67212.0,67211.0,0.60286991]
[1729896445578,0.001644,67212.0,67211.0,0.59821389]
[1729896446509,0.001644,67212.0,67211.0,0.6028696]
[1729896447595,0.001644,67212.0,67211.0,0.6048696]
[1729896449358,0.001644,67212.0,67211.0,0.60480723]
[1729896449828,0.001644,67212.0,67211.0,0.33374463]
[1729896450051,0.001644,67212.0,67211.0,0.44230337]
[1729896450275,0.001644,67212.0,67211.0,0.44230346]
[1729896450494,0.001644,67212.0,67211.0,0.43764771]
[1729896450714,0.001644,67212.0,67211.0,0.44764771]
[1729896452374,0.001644,67212.0,67211.0,0.32874463]
[1729896452598,0.001644,67212.0,67211.0,0.00075963]
[1729896452599,0.15214781,67212.0,67211.0,0.00075963]
[1729896453670,0.15214781,67212.0,67211.0,0.14954463]
[1729896454100,0.001644,67212.0,67211.0,0.14954463]
[1729896460314,0.001644,67212.0,67204.0,0.46784056]
[1729896460315,0.297617,67201.0,67188.0,0.000842]
[1729896460546,0.297617,67201.0,67179.0,0.000842]
[1729896460547,0.258313,67180.0,67179.0,0.000842]
[1729896460770,0.35109556,67180.0,67179.0,0.000842]
[1729896460999,0.59920394,67180.0,67179.0,0.000842]
[1729896461687,0.34909556,67180.0,67179.0,0.000842]
[1729896461911,0.41549791,67180.0,67179.0,0.000842]
[1729896462175,0.34909556,67180.0,67179.0,0.000842]
[1729896462441,0.428867,67174.0,67173.0,0.0034542]
[1729896462724,0.59910956,67174.0,67173.0,0.0034542]
[1729896463903,0.59910956,67174.0,67161.0,5.193e-05]
[1729896463904,0.50937812,67162.0,67161.0,5.193e-05]
[1729896464129,0.51937812,67162.0,67161.0,5.193e-05]
[1729896465787,0.34913556,67162.0,67161.0,5.193e-05]
[1729896466239,0.01,67142.0,67132.0,0.17024256]
[1729896466506,0.01,67142.0,67137.0,0.148948]
[1729896466928,0.005,67142.0,67139.0,0.148943]
[1729896467138,0.005,67142.0,67137.0,0.148947]
[1729896467349,0.005,67142.0,67132.0,0.17024256]
[1729896467350,0.01,67142.0,67132.0,0.17024256]
[1729896467567,0.01,67142.0,67138.0,0.148945]
[1729896467784,0.005,67144.0,67139.0,0.0029786]
[1729896468009,0.22334224,67144.0,67137.0,0.00297843]
[1729896468250,0.005,67144.0,67139.0,0.148944]
[1729896468468,0.005,67144.0,67141.0,0.148939]
[1729896468687,0.005,67144.0,67142.0,0.148937]
[1729896469328,0.005,67144.0,67140.0,0.148941]
[1729896469541,0.005,67143.0,67141.0,0.148939]
[1729896470260,0.005,67143.0,67141.0,0.15191743]
[1729896470491,0.005,67145.0,67141.0,0.15191743]
[1729896472592,0.005,67145.0,67141.0,0.00297843]
[1729896472812,0.005,67145.0,67144.0,0.148933]
[1729896473041,0.005,67145.0,67142.0,0.446811]
[1729896473462,0.005,67143.0,67142.0,0.446811]
[1729896474169,0.005,67143.0,67142.0,0.297876]
[1729896474405,0.22334224,67153.0,67142.0,0.297876]
[1729896474406,0.005,67155.0,67153.0,0.148913]
[1729896474637,0.005,67155.0,67143.0,0.297871]
[1729896474638,0.01,67154.0,67152.0,0.31915656]
[1729896474883,0.005,67144.0,67128.0,0.0814]
[1729896475133,0.005,67138.0,67130.0,0.22334224]
[1729896475367,0.005,67138.0,67135.0,0.148952]
[1729896475617,0.005,67138.0,67137.0,0.148949]
[1729896477774,0.005,67141.0,67140.0,0.148942]
[1729896478080,0.005,67141.0,67124.0,0.0931]
[1729896478081,0.005,67133.0,67124.0,0.0931]
[1729896478324,0.15550381,67133.0,67127.0,0.297941]
[1729896479015,0.15550381,67133.0,67130.0,0.297929]
[1729896479240,0.15550381,67133.0,67132.0,0.149782]
[1729896480360,0.005,67133.0,67132.0,0.000822]
[1729896480609,0.005,67133.0,67132.0,0.447701]
[1729896481056,0.30946181,67133.0,67132.0,0.000822]
[1729896481283,0.16050381,67133.0,67132.0,0.149782]
[1729896481793,0.005,67138.0,67132.0,0.377739]
[1729896482015,0.005,67136.0,67135.0,0.148953]
[1729896482237,0.01,67137.0,67136.0,0.148951]
[1729896482736,0.005,67137.0,67136.0,0.148951]
[1729896483471,0.005,67140.0,67139.0,0.148944]
[1729896483956,0.005,67140.0,67134.0,0.148955]
[1729896483957,0.005,67135.0,67134.0,0.148955]
[1729896484423,0.15550381,67135.0,67133.0,0.148957]
[1729896484680,0.15050381,67134.0,67132.0,0.14978]
[1729896484896,0.15050381,67134.0,67132.0,0.000822]
[1729896485119,0.15050381,67134.0,67132.0,0.14978]
[1729896485349,0.15050381,67134.0,67133.0,0.148958]
[1729896485574,0.15050381,67134.0,67132.0,0.149781]
[1729896485835,0.15050381,67134.0,67133.0,0.148958]
[1729896486308,0.15050381,67134.0,67132.0,0.000822]
[1729896486522,0.005,67133.0,67132.0,0.000822]
[1729896486778,0.15550381,67133.0,67132.0,0.149782]
[1729896487013,0.15550381,67133.0,67132.0,0.000822]
[1729896487482,0.15550381,67133.0,67132.0,0.149782]
[1729896487721,0.15550381,67133.0,67132.0,0.000822]
[1729896488179,0.15550381,67133.0,67132.0,0.149782]
[1729896489139,0.15550381,67133.0,67132.0,0.000822]
[1729896489490,0.1088805,67133.0,67132.0,0.149782]
[1729896489735,0.005,67138.0,67137.0,0.148949]
[1729896489941,0.005,67149.0,67141.0,0.14894]
[1729896489942,0.15214981,67142.0,67141.0,0.14894]
[1729896490407,0.15214981,67142.0,67141.0,0.15360171]
[1729896490837,0.001646,67142.0,67141.0,0.15360171]
[1729896491062,0.001646,67142.0,67141.0,0.15658021]
[1729896491532,0.001646,67142.0,67141.0,0.15360171]
[1729896492191,0.001646,67142.0,67141.0,0.32384427]
[1729896496693,0.001646,67142.0,67141.0,0.41504427]
[1729896497635,0.001646,67142.0,67141.0,0.49794427]
[1729896497850,0.001646,67142.0,67141.0,0.54440938]
[1729896498067,0.001646,67142.0,67141.0,0.55440942]
[1729896499368,0.001646,67142.0,67141.0,0.55640942]
[1729896500002,0.001646,67142.0,67141.0,0.70691323]
[1729896504794,0.001646,67142.0,67141.0,0.53667067]
[1729896508742,0.001646,67142.0,67141.0,0.49020388]
[1729896508977,0.001646,67142.0,67141.0,0.49020394]
[1729896509226,0.001646,67142.0,67141.0,0.53656606]
[1729896509697,0.001646,67142.0,67141.0,0.49020394]
[1729896510198,0.22334224,67153.0,67152.0,0.158915]
[1729896510428,0.22334224,67153.0,67152.0,0.6607215]
[1729896510642,0.22334224,67160.0,67159.0,0.1489]
[1729896510865,0.22334224,67160.0,67159.0,0.49404525]
[1729896511105,0.22834224,67179.0,67159.0,0.49404525]
[1729896511106,0.22334224,67172.0,67171.0,0.148873]
[1729896511323,0.22334224,67172.0,67171.0,0.31911556]
[1729896511770,0.22334224,67179.0,67178.0,0.148858]
[1729896512218,0.22334224,67186.0,67175.0,0.17024256]
[1729896512219,0.148846,67184.0,67177.0,0.29772]
[1729896512504,0.15050381,67183.0,67176.0,0.297725]
[1729896512722,0.15050381,67183.0,67175.0,0.17024256]
[1729896513156,0.15050381,67183.0,67177.0,0.297719]
[1729896513398,0.15050381,67183.0,67175.0,0.17024256]
[1729896513399,0.22334224,67186.0,67180.0,0.297707]
[1729896513652,0.15050381,67185.0,67182.0,0.148847]
[1729896514524,0.15050381,67185.0,67183.0,0.148845]
[1729896515897,0.15050381,67185.0,67184.0,0.148844]
[1729896517049,0.15050381,67185.0,67183.0,0.148846]
[1729896518802,0.15050381,67185.0,67184.0,0.148844]
[1729896519462,0.15050381,67185.0,67181.0,0.297703]
[1729896519676,0.15050381,67185.0,67184.0,0.148844]
[1729896520421,0.005,67187.0,67186.0,0.14884]
[1729896520663,0.15550381,67187.0,67186.0,0.14884]
[1729896520896,0.005,67187.0,67186.0,0.14884]
[1729896521832,0.005,67194.0,67183.0,0.46793356]
[1729896522072,0.22334224,67192.0,67183.0,0.17024256]
[1729896522321,0.15050381,67191.0,67183.0,0.17024256]
[1729896522569,0.15050381,67191.0,67190.0,0.14883]
[1729896524481,0.15550381,67191.0,67190.0,0.14883]
[1729896524742,0.15050381,67191.0,67190.0,0.14883]
[1729896526306,0.15550381,67191.0,67190.0,0.14883]
[1729896526537,0.15050381,67191.0,67190.0,0.14883]
[1729896526751,0.005,67193.0,67192.0,0.148826]
[1729896526960,0.15550381,67193.0,67192.0,0.148826]
[1729896528137,0.15050381,67193.0,67192.0,0.148826]
[1729896528539,0.15550381,67193.0,67192.0,0.148826]
[1729896529850,0.15050381,67193.0,67192.0,0.148827]
[1729896530674,0.15050381,67193.0,67191.0,0.148829]
[1729896531315,0.15050381,67193.0,67192.0,0.148827]
[1729896531544,0.15050381,67193.0,67189.0,0.297663]
[1729896531725,0.15050381,67193.0,67190.0,0.14883]
[1729896531932,0.15050381,67193.0,67191.0,0.148828]
[1729896532357,0.15050381,67193.0,67187.0,0.297675]
[1729896532358,0.005,67192.0,67187.0,0.297675]
[1729896532560,0.005,67191.0,67189.0,0.148832]
[1729896532763,0.005,67191.0,67189.0,0.297667]
[1729896532964,0.005,67191.0,67189.0,0.446498]
[1729896533175,0.005,67191.0,67189.0,0.148831]
[1729896533387,0.005,67191.0,67188.0,0.297672]
[1729896533596,0.005,67191.0,67190.0,0.148831]
[1729896535302,0.005,67191.0,67189.0,0.148833]
[1729896535916,0.005,67191.0,67190.0,0.148831]
[1729896537179,0.006646,67191.0,67190.0,0.148831]
[1729896537391,0.001646,67191.0,67190.0,0.148831]
[1729896537601,0.006646,67191.0,67190.0,0.148831]
[1729896541518,0.006646,67191.0,67189.0,0.148833]
[1729896546039,0.001646,67191.0,67189.0,0.148833]
[1729896546250,0.006646,67191.0,67189.0,0.148833]
[1729896546731,0.001646,67191.0,67189.0,0.148833]
[1729896546919,0.006646,67191.0,67189.0,0.148833]
[1729896548802,0.006646,67191.0,67188.0,0.297672]
[1729896549010,0.006646,67191.0,67186.0,0.0784]
[1729896549011,0.001646,67191.0,67190.0,0.148831]
[1729896549230,0.006646,67191.0,67188.0,0.148834]
[1729896549435,0.006646,67191.0,67188.0,0.148836]
[1729896550555,0.006646,67191.0,67189.0,0.148833]
[1729896551173,0.001646,67191.0,67189.0,0.148833]
[1729896551389,0.006646,67191.0,67189.0,0.148833]
[1729896554807,0.006646,67191.0,67190.0,0.148831]
[1729896555020,0.006646,67191.0,67188.0,0.148833]
[1729896555877,0.006646,67191.0,67189.0,0.148833]
[1729896556085,0.006646,67191.0,67190.0,0.148831]
[1729896556759,0.05085452,67191.0,67190.0,0.148831]
[1729896558319,0.006646,67191.0,67190.0,0.148831]
[1729896558971,0.006646,67191.0,67187.0,0.297676]
[1729896559179,0.04449416,67190.0,67189.0,0.148833]
[1729896559646,0.006646,67191.0,67189.0,0.148833]
[1729896559871,0.006646,67191.0,67190.0,0.148831]
[1729896560103,0.001646,67191.0,67190.0,0.148831]
[1729896560324,0.04616265,67191.0,67190.0,0.148831]
[1729896560537,0.06795878,67191.0,67190.0,0.148831]
[1729896561836,0.06842744,67191.0,67190.0,0.148831]
[1729896562065,0.07342744,67191.0,67190.0,0.148831]
[1729896562494,0.07342744,67191.0,67187.0,0.297676]
[1729896562706,0.04452559,67189.0,67188.0,0.148833]
[1729896563352,0.06678144,67190.0,67188.0,0.148833]
[1729896563797,0.005,67185.0,67169.0,0.297756]
[1729896564027,0.04452647,67181.0,67173.0,0.22334224]
[1729896564232,0.04452647,67178.0,67174.0,0.148867]
[1729896564456,0.19338247,67179.0,67174.0,0.148867]
[1729896564687,0.19503028,67179.0,67174.0,0.29773]
[1729896564896,0.19503028,67179.0,67175.0,0.148864]
[1729896565327,0.19503028,67179.0,67176.0,0.148862]
[1729896566032,0.04452647,67178.0,67176.0,0.148862]
[1729896566247,0.19503028,67179.0,67176.0,0.148862]
[1729896566459,0.19503028,67179.0,67174.0,0.29773]
[1729896566664,0.19503028,67179.0,67176.0,0.148862]
[1729896567137,0.19503028,67179.0,67177.0,0.148859]
[1729896568179,0.15050381,67179.0,67178.0,0.148858]
[1729896568387,0.15050381,67179.0,67175.0,0.297729]
[1729896568609,0.15050381,67179.0,67175.0,0.10902698]
[1729896568822,0.15050381,67179.0,67177.0,0.148858]
[1729896569033,0.15050381,67179.0,67176.0,0.297725]
[1729896569257,0.15050381,67179.0,67178.0,0.148858]
[1729896571192,0.15050381,67179.0,67178.0,0.25788498]
[1729896573424,0.005,67184.0,67183.0,0.148847]
[1729896573639,0.15050381,67184.0,67183.0,0.148847]
[1729896573856,0.21562171,67190.0,67183.0,0.148847]
[1729896573857,0.04452647,67189.0,67188.0,0.148836]
[1729896574065,0.15550381,67189.0,67188.0,0.25786298]
[1729896578050,0.19995617,67189.0,67188.0,0.25786298]
[1729896579532,0.19995617,67189.0,67188.0,0.10902698]
[1729896579745,0.15550381,67189.0,67188.0,0.10902698]
[1729896583132,0.005,67188.0,67187.0,0.148838]
[1729896583346,0.04944563,67188.0,67186.0,0.14884]
[1729896583781,0.005,67187.0,67186.0,0.14884]
[1729896584458,0.04944563,67187.0,67186.0,0.14884]
[1729896584963,0.005,67187.0,67186.0,0.14884]
[1729896585882,0.04944563,67187.0,67186.0,0.14884]
[1729896586135,0.21718235,67189.0,67187.0,0.148838]
[1729896586136,0.04444563,67188.0,67187.0,0.148838]
[1729896586361,0.04944563,67188.0,67187.0,0.148838]
[1729896586583,0.005,67188.0,67187.0,0.148838]
[1729896587807,0.005,67188.0,67185.0,0.10902698]
[1729896588039,0.04443182,67187.0,67185.0,0.25786798]
[1729896588271,0.005,67186.0,67185.0,0.25786798]
[1729896588751,0.63165378,67186.0,67173.0,0.148869]
[1729896588963,0.63165378,67186.0,67172.0,0.0797]
[1729896588964,0.297703,67181.0,67174.0,0.37220824]
[1729896589174,0.148859,67178.0,67174.0,0.148866]
[1729896589871,0.148859,67178.0,67175.0,0.148864]
[1729896590328,0.15050381,67180.0,67173.0,0.10902698]
[1729896590561,0.15050381,67180.0,67177.0,0.148859]
[1729896590788,0.29935781,67180.0,67176.0,0.148862]
[1729896591272,0.29935781,67180.0,67177.0,0.14886]
[1729896591495,0.29935781,67180.0,67176.0,0.14886]
[1729896591722,0.29935781,67180.0,67177.0,0.148859]
[1729896593018,0.15050381,67180.0,67177.0,0.148859]
[1729896594093,0.15050381,67180.0,67178.0,0.148857]
[1729896594753,0.15214981,67180.0,67178.0,0.148857]
[1729896595197,0.15214981,67180.0,67176.0,0.14886]
[1729896595410,0.22334224,67179.0,67172.0,0.0797]
[1729896595632,0.22334224,67179.0,67169.0,0.148878]
[1729896595633,0.148861,67177.0,67169.0,0.148878]
[1729896595864,0.15050381,67176.0,67173.0,0.148868]
[1729896596964,0.15050381,67176.0,67174.0,0.148866]
[1729896597192,0.04606017,67180.0,67160.0,0.148896]
[1729896597193,0.148889,67165.0,67160.0,0.148896]
[1729896597419,0.29776,67169.0,67147.0,0.22334224]
[1729896597420,0.01,67160.0,67147.0,0.22334224]
[1729896597701,0.15050381,67161.0,67147.0,0.22334224]
[1729896597702,0.005,67150.0,67147.0,0.22334224]
[1729896597927,0.005,67150.0,67142.0,0.000823]
[1729896597928,0.04940317,67150.0,67142.0,0.000823]
[1729896598155,0.148923,67149.0,67142.0,0.149758]
[1729896598376,0.148935,67143.0,67142.0,0.000823]
[1729896598604,0.52278105,67143.0,67142.0,0.000823]
[1729896598835,0.26798198,67134.0,67133.0,0.000823]
[1729896599097,0.41848579,67134.0,67133.0,0.000823]
[1729896599322,0.30945881,67134.0,67133.0,0.000823]
[1729896599551,0.30445881,67134.0,67133.0,0.000823]
[1729896600467,0.15550381,67134.0,67133.0,0.000823]
[1729896602686,0.15550381,67134.0,67133.0,0.149781]
[1729896603789,0.15550381,67134.0,67133.0,0.000823]
[1729896604280,0.15550381,67134.0,67133.0,0.149781]
[1729896604499,0.15550381,67134.0,67133.0,0.000823]
[1729896604714,0.15550381,67134.0,67133.0,0.149781]
[1729896604945,0.15050381,67134.0,67133.0,0.149781]
[1729896605157,0.15550381,67134.0,67133.0,0.149781]
[1729896605373,0.15050381,67134.0,67133.0,0.149781]
[1729896606894,0.005,67140.0,67139.0,0.148944]
[1729896607104,0.15550381,67140.0,67139.0,0.148944]
[1729896607529,0.15050381,67140.0,67139.0,0.148944]
[1729896608180,0.0072342,67144.0,67143.0,0.148935]
[1729896608398,0.15273801,67144.0,67143.0,0.148935]
[1729896609241,0.15773801,67144.0,67143.0,0.148935]
[1729896610498,0.15273801,67144.0,67143.0,0.148935]
[1729896610738,0.15773801,67144.0,67143.0,0.148935]
[1729896611160,0.15273801,67144.0,67143.0,0.148935]
[1729896611614,0.15273801,67144.0,67143.0,0.31966143]
[1729896615087,0.15273801,67144.0,67143.0,0.148935]
[1729896619246,0.15438201,67144.0,67143.0,0.148935]
[1729896634438,0.26856667,67144.0,67142.0,0.000822]
[1729896634708,0.29943881,67143.0,67142.0,0.000822]
[1729896634922,0.30443881,67143.0,67142.0,0.000822]
[1729896636098,0.30443881,67143.0,67130.0,0.30504224]
[1729896636099,0.01,67094.0,67093.0,5.195e-05]
[1729896636578,0.005,67094.0,67093.0,5.195e-05]
[1729896637440,0.159044,67094.0,67093.0,5.195e-05]
[1729896639439,0.30954781,67094.0,67093.0,5.195e-05]
[1729896642190,0.30954781,67094.0,67093.0,0.00087395]
[1729896644148,0.30954781,67094.0,67093.0,0.000822]
[1729896647590,0.46005162,67094.0,67093.0,0.000822]
[1729896647831,0.30954781,67094.0,67093.0,0.000822]
[1729896650849,0.30454781,67094.0,67093.0,0.000822]
[1729896651060,0.30954781,67094.0,67093.0,0.000822]
[1729896653422,0.30454781,67094.0,67093.0,0.000822]
[1729896653635,0.30954781,67094.0,67093.0,0.000822]
[1729896655656,0.30454781,67094.0,67093.0,0.000822]
[1729896659823,0.30454781,67094.0,67093.0,0.081922]
[1729896659824,0.15550381,67094.0,67093.0,0.081922]
[1729896660493,0.15050381,67094.0,67093.0,0.081922]
[1729896661768,0.00223573,67099.0,67093.0,0.25287239]
[1729896662135,0.15050381,67098.0,67097.0,0.17095039]